bitfinex/quotes_ETHUSD_20251009
["timestamp","ask_amount","ask_price","bid_price","bid_amount"]
[1760004320731,25.26526698,4342.4,4342.3,0.026]
[1760004323259,24.6470502,4342.4,4342.3,0.026]
[1760004324182,6.65108613,4342.0,4341.9,0.001]
[1760004324395,18.17502593,4342.0,4341.9,0.001]
[1760004324553,21.72251629,4342.0,4341.9,0.001]
[1760004326347,21.10562904,4342.0,4341.9,0.001]
[1760004326975,21.72251629,4342.0,4341.9,0.001]
[1760004329453,28.74251629,4342.0,4341.9,0.001]
[1760004329654,28.74251629,4342.0,4341.8,0.001]
[1760004329655,2.30335137,4341.5,4341.4,1e-08]
[1760004329868,23.95486876,4341.5,4341.4,1e-08]
[1760004330073,24.65933487,4341.5,4341.4,1e-08]
[1760004331989,12.44974451,4341.5,4341.4,1e-08]
[1760004332173,11.0577,4341.5,4341.4,1e-08]
[1760004333353,13.36105137,4341.5,4341.4,1e-08]
[1760004334491,13.36025137,4341.5,4341.4,1e-08]
[1760004336796,11.0559,4341.5,4341.4,1e-08]
[1760004337489,13.35925137,4341.5,4341.4,1e-08]
[1760004338263,13.85392557,4341.5,4341.4,1e-08]
[1760004339199,11.5505742,4341.5,4341.4,1e-08]
[1760004339493,13.85392557,4341.5,4341.4,1e-08]
[1760004343610,15.49142341,4341.5,4341.4,1e-08]
[1760004344592,13.85192557,4341.5,4341.4,1e-08]
[1760004344799,4.95492557,4341.5,4341.4,1e-08]
[1760004345018,13.85192557,4341.5,4341.4,1e-08]
[1760004346290,2.6515742,4341.5,4341.4,1e-08]
[1760004346478,11.57736609,4341.5,4341.4,1e-08]
[1760004346674,11.5485742,4341.5,4341.4,1e-08]
[1760004346877,13.85192557,4341.5,4341.4,1e-08]
[1760004348389,19.38762936,4341.5,4341.4,1e-08]
[1760004350796,15.48922411,4341.5,4341.4,1e-08]
[1760004351079,15.49022411,4341.5,4341.4,1e-08]
[1760004353321,13.09422411,4341.5,4341.4,1e-08]
[1760004353520,2.4138742,4341.5,4341.4,1e-08]
[1760004353724,1.9192,4341.5,4341.4,1e-08]
[1760004354022,1.9212,4341.5,4341.4,1e-08]
[1760004354395,0.002,4341.5,4341.4,2.93700444]
[1760004354594,6.504,4341.5,4341.4,3.39100444]
[1760004354796,0.002,4341.5,4341.4,3.50665482]
[1760004355121,0.002,4341.5,4341.4,3.96065482]
[1760004356288,0.002,4341.5,4341.4,3.97483313]
[1760004356689,0.002,4341.5,4341.4,3.96065482]
[1760004357526,0.0012,4341.5,4341.4,3.96065482]
[1760004358609,0.0012,4341.5,4341.4,3.50665482]
[1760004359519,0.3527,4341.5,4341.4,1e-08]
[1760004360404,0.38149189,4341.5,4341.4,1e-08]
[1760004363943,6.88349189,4341.5,4341.4,1e-08]
[1760004364235,6.8547,4341.5,4341.4,1e-08]
[1760004364754,6.8537,4341.5,4341.4,1e-08]
[1760004364902,0.1156,4341.5,4341.4,0.23054682]
[1760004365102,0.0012,4341.5,4341.4,7.303588]
[1760004365302,0.0012,4341.5,4341.4,3.05260444]
[1760004366107,0.0012,4341.5,4341.4,3.50660444]
[1760004368340,0.0012,4341.5,4341.4,3.05260444]
[1760004368745,0.0012,4341.5,4341.4,1e-08]
[1760004368912,0.2245,4341.5,4341.4,0.63360001]
[1760004369112,0.2245,4341.5,4341.4,2.93700444]
[1760004369466,0.0012,4341.5,4341.4,2.93700444]
[1760004369614,0.0012,4341.5,4341.4,1e-08]
[1760004369843,0.0012,4341.5,4341.4,2.93700444]
[1760004372015,0.0012,4341.5,4341.4,3.92589371]
[1760004373154,0.0012,4341.5,4341.4,3.47189371]
[1760004373456,0.2246,4341.5,4341.4,0.63360001]
[1760004373756,0.25339189,4341.5,4341.4,1e-08]
[1760004374309,4.44795137,4341.5,4341.4,1e-08]
[1760004374645,4.47674326,4341.5,4341.4,1e-08]
[1760004376540,4.97061437,4341.5,4341.4,1e-08]
[1760004376746,5.6920276,4341.5,4341.4,1e-08]
[1760004377374,5.19815649,4341.5,4341.4,1e-08]
[1760004379836,2.89480512,4341.5,4341.4,1e-08]
[1760004380023,11.07139189,4341.5,4341.4,1e-08]
[1760004380347,13.34515137,4341.5,4341.4,1e-08]
[1760004382947,8.4214,4341.5,4341.4,1e-08]
[1760004383250,11.0448,4341.5,4341.4,1e-08]
[1760004383639,0.0004,4341.5,4341.4,1e-08]
[1760004383959,6.5024,4341.5,4341.4,1e-08]
[1760004384171,6.5024,4341.5,4341.4,2.30340444]
[1760004384470,0.0004,4341.5,4341.4,3.39790022]
[1760004384639,0.0004,4341.5,4341.4,3.86077853]
[1760004385464,0.0004,4341.5,4341.4,3.84660022]
[1760004385630,0.0004,4341.5,4341.4,3.39790022]
[1760004387044,0.0004,4341.5,4341.4,3.84660022]
[1760004389847,0.0004,4341.5,4341.4,3.39790022]
[1760004390157,0.0004,4341.5,4341.4,2.93700444]
[1760004391660,0.0004,4341.5,4341.4,3.38570444]
[1760004393471,0.0004,4341.5,4341.4,2.93700444]
[1760004393861,0.0004,4341.5,4341.4,3.38570444]
[1760004396280,0.0004,4341.5,4341.4,3.39988275]
[1760004396598,0.0004,4341.5,4341.4,4.35998674]
[1760004397523,0.0004,4341.5,4341.4,34.57460843]
[1760004397881,0.0004,4341.5,4341.4,33.48819343]
[1760004398219,0.0004,4341.5,4341.4,28.12754743]
[1760004398921,0.0004,4341.5,4341.4,32.84747743]
[1760004399776,0.0004,4341.5,4341.4,32.96076717]
[1760004399976,0.0004,4341.5,4341.4,36.60789817]
[1760004402016,0.0004,4341.5,4341.4,33.2865511]
[1760004402225,0.0004,4341.5,4341.4,12.4015721]
[1760004402387,0.0004,4341.5,4341.4,9.8034301]
[1760004402588,0.0004,4341.5,4341.4,16.3014301]
[1760004402800,0.0004,4341.5,4341.4,14.3814301]
[1760004403123,0.0004,4341.5,4341.4,11.07260843]
[1760004403286,0.0004,4341.5,4341.4,14.3814301]
[1760004403487,0.0016,4342.0,4341.9,2.93673917]
[1760004404321,0.0016,4342.0,4341.9,4.11053405]
[1760004404823,0.0016,4342.0,4341.9,4.54133405]
[1760004405790,0.0016,4342.0,4341.9,4.11053405]
[1760004405989,0.0016,4342.0,4341.9,4.54133405]
[1760004409003,0.0016,4342.0,4341.9,11.03933405]
[1760004414334,0.0016,4342.0,4341.9,9.43473917]
[1760004414501,0.0016,4342.0,4341.9,9.86553917]
[1760004419408,0.0016,4342.0,4341.9,9.97993917]
[1760004419823,0.0016,4342.0,4341.9,10.07212641]
[1760004420231,0.0016,4342.0,4341.9,12.95014808]
[1760004420434,0.0016,4342.0,4341.9,2.93673917]
[1760004420643,0.0016,4342.0,4341.9,9.43373917]
[1760004421645,0.0016,4342.0,4341.9,9.86453917]
[1760004421952,0.0016,4342.0,4341.9,10.88657965]
[1760004422131,0.0016,4342.0,4341.9,9.43373917]
[1760004422565,0.0016,4342.0,4341.9,2.93673917]
[1760004422724,0.0016,4342.0,4341.9,3.38171085]
[1760004423362,0.0016,4342.0,4341.9,6.69053252]
[1760004423529,0.0016,4342.0,4341.9,8.71076084]
[1760004423735,0.0016,4342.0,4341.9,10.90724005]
[1760004424152,0.0016,4342.0,4341.9,33.58102405]
[1760004424355,0.0016,4342.0,4341.9,31.57985205]
[1760004424556,0.0016,4342.0,4341.9,30.74116205]
[1760004425127,0.0016,4342.0,4341.9,30.98928005]
[1760004425328,0.0016,4342.0,4341.9,29.89952405]
[1760004425856,0.0016,4342.0,4341.9,13.11192905]
[1760004426036,0.0016,4342.0,4341.9,7.59841838]
[1760004426351,0.0016,4342.0,4341.9,11.16991938]
[1760004426554,0.0008,4342.0,4341.9,11.16991938]
[1760004426929,0.0008,4342.0,4341.9,7.59841838]
[1760004427361,0.0008,4342.0,4341.9,20.03795805]
[1760004427864,0.0008,4342.0,4341.9,16.72913638]
[1760004428942,0.0008,4342.0,4341.9,20.03795805]
[1760004429128,0.0008,4342.0,4341.9,10.90724005]
[1760004429568,0.0008,4342.0,4341.9,28.23006905]
[1760004429742,0.0008,4342.0,4341.9,21.24373805]
[1760004430361,0.0008,4342.0,4341.9,10.90724005]
[1760004430563,0.0008,4342.0,4341.9,18.25167005]
[1760004430763,0.0008,4342.0,4341.9,7.59841838]
[1760004431079,0.0008,4342.0,4341.9,9.72802938]
[1760004431869,0.0008,4342.0,4341.9,13.03685105]
[1760004433054,0.0008,4342.0,4341.9,40.90724005]
[1760004433456,0.0008,4342.0,4341.9,37.59841838]
[1760004433650,0.0008,4342.0,4341.9,40.90724005]
[1760004433856,0.0008,4342.0,4341.9,36.15334605]
[1760004434163,0.0008,4342.0,4341.9,29.83828905]
[1760004435054,0.0008,4342.0,4341.9,30.16255505]
[1760004435568,0.002,4342.5,4342.4,6.24529565]
[1760004435768,0.002,4342.5,4342.4,15.99111958]
[1760004435959,0.002,4342.5,4342.4,16.53381958]
[1760004436356,0.002,4342.5,4342.4,16.64821958]
[1760004437087,0.002,4342.5,4342.4,38.81906358]
[1760004437251,0.002,4342.5,4342.4,37.24159558]
[1760004438146,0.002,4342.5,4342.4,15.25939791]
[1760004438344,0.002,4342.5,4342.4,18.56821958]
[1760004438568,0.002,4342.5,4342.4,27.54507858]
[1760004439143,0.002,4342.5,4342.4,30.91648158]
[1760004439655,0.002,4342.5,4342.4,22.81915158]
[1760004440080,0.002,4342.5,4342.4,24.77544958]
[1760004440276,0.002,4342.5,4342.4,6.36839791]
[1760004440444,0.002,4342.5,4342.4,18.56821958]
[1760004442653,0.002,4342.5,4342.4,9.67721958]
[1760004442961,0.002,4342.5,4342.4,16.17321958]
[1760004443848,0.002,4342.5,4342.4,36.30392558]
[1760004444479,0.002,4343.0,4342.9,2.93620885]
[1760004444776,0.002,4343.0,4342.9,14.43181373]
[1760004445107,0.002,4343.0,4342.9,26.97434031]
[1760004445384,0.002,4343.0,4342.9,27.08924031]
[1760004445571,0.002,4343.0,4342.9,45.07525531]
[1760004445973,0.002,4343.0,4342.9,44.70092831]
[1760004446487,0.002,4343.0,4342.9,40.19543331]
[1760004447279,0.002,4343.0,4342.9,17.15410031]
[1760004447471,0.002,4343.0,4342.9,15.07525531]
[1760004447670,0.002,4343.0,4342.9,8.57925531]
[1760004447864,0.002,4343.0,4342.9,13.39763052]
[1760004449253,0.002,4343.0,4342.9,2.93620885]
[1760004449586,0.0012,4343.0,4342.9,9.43120885]
[1760004449754,0.0012,4343.0,4342.9,9.85950885]
[1760004450952,0.0012,4343.0,4342.9,9.43120885]
[1760004451586,0.0012,4343.0,4342.9,9.85950885]
[1760004452453,0.0012,4343.0,4342.9,9.43120885]
[1760004452771,0.0012,4343.0,4342.9,9.85950885]
[1760004454079,0.0012,4343.0,4342.9,9.43120885]
[1760004454457,0.0012,4343.0,4342.9,3.36450885]
[1760004454787,0.0012,4343.0,4342.9,9.85950885]
[1760004456286,0.0012,4343.0,4342.9,9.43120885]
[1760004456799,0.0012,4343.0,4342.9,2.93620885]
[1760004456993,0.0012,4343.0,4342.9,9.43120885]
[1760004457475,0.0012,4343.0,4342.9,2.93620885]
[1760004459093,0.0012,4343.0,4342.9,3.36450885]
[1760004459393,0.0012,4343.0,4342.9,3.37866727]
[1760004461200,0.0012,4343.0,4342.9,2.93620885]
[1760004463916,0.0012,4343.0,4342.9,9.43120885]
[1760004466213,0.0012,4343.0,4342.9,9.90450885]
[1760004467209,0.0012,4343.0,4342.9,11.11775111]
[1760004468199,0.0012,4343.0,4342.9,9.43120885]
[1760004469615,0.6168316,4345.0,4343.9,0.6336]
[1760004469819,0.2165,4346.0,4343.0,0.6336]
[1760004469820,0.1144,4345.1,4344.6,0.6336]
[1760004469983,0.1144,4345.1,4345.0,2.93509597]
[1760004470183,0.1144,4345.1,4345.0,9.43009597]
[1760004472540,0.3264,4346.0,4345.5,0.6336]
[1760004472814,0.01463097,4345.9,4345.4,0.6336]
[1760004473018,0.20809407,4345.9,4345.6,0.6336]
[1760004473186,0.20809407,4345.9,4345.8,2.30107229]
[1760004473685,0.1934631,4345.9,4345.8,2.30107229]
[1760004473888,0.1934631,4345.9,4345.7,2.30111846]
[1760004474095,0.1144,4345.6,4345.4,0.6336]
[1760004474295,0.1144,4345.6,4345.5,2.93483115]
[1760004475943,0.4582,4345.6,4345.5,0.6336]
[1760004476925,0.4582,4345.6,4345.5,2.93483115]
[1760004477514,0.4582,4345.6,4345.5,0.6336]
[1760004478104,0.4582,4345.6,4345.5,2.93483115]
[1760004478506,0.4582,4345.6,4345.5,0.6336]
[1760004479618,0.4582,4345.6,4345.5,2.93483115]
[1760004480017,0.4582,4345.6,4345.2,0.6336]
[1760004480243,0.01663097,4346.0,4345.1,7.1266]
[1760004480244,0.1144,4345.2,4345.1,7.1266]
[1760004480540,0.2261,4345.2,4345.1,2.935043]
[1760004481726,0.1144,4345.2,4345.1,2.935043]
[1760004481922,0.2261,4345.2,4345.1,0.6336]
[1760004482147,0.2261,4345.2,4345.0,0.001]
[1760004482441,0.12633097,4345.1,4345.0,0.001]
[1760004484235,0.01463097,4345.1,4345.0,0.001]
[1760004484433,0.1117,4345.1,4345.0,0.001]
[1760004486945,0.01463097,4345.4,4345.0,2.30245848]
[1760004487146,0.01463097,4345.4,4345.2,2.30139003]
[1760004487346,8.142,4345.6,4345.0,0.001]
[1760004487657,0.01463097,4345.5,4345.4,2.30126629]
[1760004487954,8.142,4345.6,4345.4,2.30126629]
[1760004488663,8.142,4345.6,4345.5,2.30123115]
[1760004488873,2.394,4345.6,4345.5,2.30123115]
[1760004489429,0.01463097,4345.8,4345.5,2.30123115]
[1760004489649,1.93663097,4346.0,4345.5,0.6336]
[1760004489933,1.93663097,4346.0,4345.4,2.32429681]
[1760004489934,0.01463097,4345.8,4345.6,2.3011782]
[1760004490330,1.93663097,4346.0,4345.7,2.30112525]
[1760004490655,0.002,4346.0,4345.8,2.30106338]
[1760004491041,0.002,4346.0,4345.9,2.93461935]
[1760004491250,0.01663097,4346.0,4345.9,0.6336]
[1760004491561,0.01663097,4346.0,4345.9,2.93461935]
[1760004494471,0.002,4346.0,4345.9,2.93461935]
[1760004494765,0.1164,4346.0,4345.9,2.93461935]
[1760004495757,0.1156,4346.0,4345.9,2.93461935]
[1760004498657,0.1156,4346.0,4345.9,3.39151935]
[1760004498835,0.1156,4346.0,4345.9,2.93461935]
[1760004499444,0.1156,4346.0,4345.9,3.39151935]
[1760004499646,0.1156,4346.0,4345.9,4.6215438]
[1760004500466,0.1156,4346.0,4345.9,4.1646438]
[1760004500839,0.1156,4346.0,4345.9,0.6336]
[1760004501691,0.2232,4346.0,4345.9,0.6336]
[1760004502074,0.1156,4346.0,4345.9,0.6336]
[1760004504195,0.1156,4346.0,4345.9,2.93461935]
[1760004504368,0.1156,4346.0,4345.9,3.39151935]
[1760004504573,0.1156,4346.0,4345.9,3.41452954]
[1760004505082,0.0012,4346.0,4345.9,2.93461935]
[1760004505289,0.0012,4346.0,4345.9,4.56429356]
[1760004505688,0.0012,4346.0,4345.9,2.93461935]
[1760004506785,0.0012,4346.0,4345.9,9.42661935]
[1760004507510,0.0012,4346.0,4345.9,0.6336]
[1760004507791,0.1088,4346.0,4345.9,0.6336]
[1760004508559,0.1144,4345.9,4345.5,7.1246]
[1760004508762,0.1144,4345.6,4345.5,9.42582944]
[1760004509005,0.1144,4345.6,4345.5,8.79222944]
[1760004509414,0.1144,4345.6,4345.0,0.69193459]
[1760004509620,0.0012,4346.0,4345.0,0.69193459]
[1760004509621,0.3373,4345.7,4345.2,2.30138374]
[1760004509909,0.3373,4345.7,4345.1,6.198]
[1760004509910,0.1144,4345.3,4345.1,8.4994354]
[1760004510110,0.1144,4345.3,4345.1,8.49942762]
[1760004510275,0.1144,4345.3,4345.2,2.30139003]
[1760004510478,0.1144,4345.3,4345.2,2.32440393]
[1760004510925,0.1144,4345.3,4345.2,2.78130393]
[1760004511223,0.1144,4345.3,4345.2,9.27230393]
[1760004511386,0.1144,4345.3,4345.2,9.24929003]
[1760004511587,0.1144,4345.3,4345.2,2.30139003]
[1760004511776,0.1144,4345.3,4345.2,8.79239003]
[1760004511984,0.1144,4345.3,4345.2,2.30139003]
[1760004512526,0.1144,4345.3,4345.2,2.32440393]
[1760004512680,0.1144,4345.3,4345.2,4.52669298]
[1760004512882,0.1144,4345.3,4345.2,4.50367908]
[1760004513413,0.1144,4345.3,4345.2,4.04677908]
[1760004513710,0.1144,4345.3,4345.2,4.06979298]
[1760004514198,0.0012,4346.0,4345.7,0.6336]
[1760004514599,0.1144,4345.7,4345.5,0.6336]
[1760004514914,0.2337,4345.7,4345.5,0.6336]
[1760004515524,0.1144,4345.7,4345.5,0.6336]
[1760004515720,0.1144,4345.7,4345.4,6.491]
[1760004515925,0.1144,4345.7,4345.6,0.6336]
[1760004516598,0.2327,4345.7,4345.6,0.6336]
[1760004517314,0.1144,4345.7,4345.6,0.6336]
[1760004517513,0.1144,4345.7,4345.6,2.3011782]
[1760004517815,0.1144,4345.7,4345.6,2.9347782]
[1760004518014,0.1144,4345.7,4345.6,0.6336]
[1760004518813,0.1136,4345.7,4345.6,0.6336]
[1760004522103,0.1136,4345.7,4345.6,2.9347782]
[1760004524286,0.1136,4345.7,4345.6,3.3503073]
[1760004524484,0.1136,4345.7,4345.6,3.7926073]
[1760004526119,0.0012,4346.0,4345.9,2.93461935]
[1760004526329,0.0012,4346.0,4345.9,9.44862954]
[1760004526492,0.0012,4346.0,4345.9,9.42561935]
[1760004526690,0.0012,4346.0,4345.9,11.64274136]
[1760004533653,0.0012,4346.0,4345.9,11.75714136]
[1760004535162,0.0012,4346.0,4345.9,5.26614136]
[1760004535453,0.0012,4346.0,4345.9,6.79612318]
[1760004535752,0.0012,4346.0,4345.9,15.68012318]
[1760004535958,0.0012,4346.0,4345.9,12.37531935]
[1760004536113,1.15974213,4348.6,4345.9,12.37531935]
[1760004536114,0.3362,4348.2,4347.6,0.6336]
[1760004536314,0.01463097,4348.1,4347.8,0.6336]
[1760004536753,0.01463097,4348.1,4347.7,0.6336]
[1760004537119,0.47168405,4348.1,4347.7,0.6336]
[1760004537341,0.3362,4348.0,4347.7,0.6336]
[1760004538044,0.47168405,4348.1,4347.7,0.6336]
[1760004538758,0.3362,4348.0,4347.7,0.6336]
[1760004538959,2.2562,4348.0,4347.7,0.6336]
[1760004539130,0.01463097,4347.9,4347.7,0.6336]
[1760004539928,0.35083097,4347.9,4347.7,0.6336]
[1760004540127,0.01463097,4347.9,4347.7,0.6336]
[1760004540325,0.334,4347.8,4346.7,0.4423]
[1760004540533,2.64873539,4347.7,4346.8,2.98549873]
[1760004540819,2.30012842,4347.6,4346.8,0.68500542]
[1760004541029,0.34863097,4347.7,4347.0,2.30042861]
[1760004541221,2.30021447,4347.5,4347.0,0.6336]
[1760004541419,0.34863097,4347.4,4347.0,0.6336]
[1760004541656,0.3332,4347.3,4347.0,0.6336]
[1760004541863,0.01463097,4347.5,4347.0,0.6336]
[1760004542363,3.30480383,4348.1,4347.0,0.6336]
[1760004542364,6.22087136,4349.3,4347.4,0.6336]
[1760004542543,2.29961574,4348.6,4347.5,6.68086535]
[1760004542726,2.29961574,4348.6,4347.4,0.588]
[1760004542727,0.01463097,4348.5,4347.8,0.6336]
[1760004542917,2.29970171,4348.4,4347.5,0.6336]
[1760004543119,0.01463097,4348.3,4347.5,0.6336]
[1760004543347,0.01463097,4348.3,4348.0,0.6336]
[1760004543652,0.01463097,4348.5,4348.2,0.6336]
[1760004543951,2.29949454,4348.8,4348.1,0.6336]
[1760004544137,1.93463097,4348.7,4347.9,0.6336]
[1760004544338,2.29965249,4348.5,4347.9,0.6336]
[1760004544535,0.24953097,4348.4,4347.9,0.6336]
[1760004544739,0.2349,4348.3,4347.9,0.6336]
[1760004545330,0.2349,4348.2,4347.9,0.6336]
[1760004546059,0.1144,4348.0,4347.9,0.6336]
[1760004547147,0.3493,4348.0,4347.5,7.1226]
[1760004547350,0.1144,4347.7,4347.5,9.42274939]
[1760004547558,0.1144,4347.7,4347.6,3.39902079]
[1760004547756,0.1144,4347.7,4347.6,2.9337196]
[1760004549959,0.1144,4347.7,4347.6,0.6336]
[1760004550149,0.1144,4347.7,4347.6,2.9337196]
[1760004550538,0.3484,4348.8,4347.6,7.92034903]
[1760004550741,0.01463097,4348.7,4347.9,0.6336]
[1760004550952,1.92,4348.6,4347.9,0.6565996]
[1760004551270,0.002,4348.0,4347.9,0.6565996]
[1760004551674,0.002,4348.0,4347.9,2.9565605]
[1760004552876,0.002,4348.0,4347.9,0.6565996]
[1760004553065,0.002,4348.0,4347.9,2.9565605]
[1760004561287,0.002,4348.0,4347.9,0.6565996]
[1760004561495,0.002,4348.0,4347.9,0.6336]
[1760004561782,0.1365,4348.0,4347.9,0.6336]
[1760004562350,0.1365,4348.0,4347.9,2.9335609]
[1760004562548,0.1365,4348.0,4347.9,0.6336]
[1760004563558,3.44130383,4348.0,4346.5,0.4348]
[1760004563788,0.70716135,4347.9,4346.6,0.377]
[1760004563981,3.00715549,4347.9,4346.1,3.30480383]
[1760004564187,2.2706,4347.8,4346.8,0.6336]
[1760004564351,2.30013916,4347.6,4346.8,0.6336]
[1760004564548,0.14473097,4347.5,4347.0,0.6336]
[1760004564747,0.37458701,4347.4,4347.0,0.6336]
[1760004564963,0.14473097,4347.3,4346.9,0.6336]
[1760004565184,0.14473097,4347.3,4346.9,2.9340788]
[1760004565363,0.1301,4347.2,4346.5,0.6336]
[1760004565549,0.14473097,4347.1,4346.5,2.30069807]
[1760004565752,0.14473097,4347.1,4346.6,0.6336]
[1760004565753,0.1301,4347.0,4346.6,0.6336]
[1760004566080,0.1301,4346.9,4346.6,0.6336]
[1760004566283,0.01463097,4347.2,4346.8,0.6336]
[1760004566487,0.27056005,4347.2,4346.8,2.93413257]
[1760004566979,0.24448701,4347.4,4346.7,0.6336]
[1760004566980,0.25911798,4347.4,4346.7,0.6336]
[1760004567145,0.25831798,4347.4,4346.7,1.0684]
[1760004567347,0.38841798,4347.4,4347.0,2.30043536]
[1760004567547,0.1301,4347.3,4346.8,2.93412004]
[1760004567750,0.1301,4347.3,4347.1,2.30034369]
[1760004567950,0.1301,4347.3,4346.7,0.6336]
[1760004568147,2.54392198,4347.4,4346.3,2.30078137]
[1760004568400,2.43047815,4347.2,4346.5,0.6336]
[1760004568694,0.01463097,4347.1,4346.6,2.30064675]
[1760004568896,0.01463097,4347.1,4346.7,0.6336]
[1760004569098,0.1301,4347.0,4346.7,0.6336]
[1760004569280,0.1301,4346.9,4346.6,0.6336]
[1760004569484,0.1301,4346.8,4346.7,0.6336]
[1760004569851,0.1301,4346.8,4346.6,0.6336]
[1760004570052,0.01463097,4347.2,4346.8,0.6336]
[1760004570400,0.76859822,4347.2,4346.6,0.6336]
[1760004570549,3.43490383,4347.1,4346.3,0.001]
[1760004570891,0.01463097,4347.0,4346.3,0.001]
[1760004571254,2.43062598,4346.9,4346.3,0.001]
[1760004571554,0.01463097,4346.8,4346.3,0.001]
[1760004571755,3.30480383,4346.5,4346.3,0.001]
[1760004571979,0.01463097,4346.4,4346.3,0.001]
[1760004572178,0.14473097,4346.4,4346.3,0.001]
[1760004572355,2.44548561,4346.4,4346.3,0.001]
[1760004572910,7.67028944,4346.4,4346.3,0.001]
[1760004573191,8.64282038,4346.4,4346.3,0.001]
[1760004576640,15.13182038,4346.4,4346.3,0.001]
[1760004576901,9.52626191,4346.4,4346.3,0.001]
[1760004577065,11.82701655,4346.4,4346.3,0.001]
[1760004580098,15.13182038,4346.4,4346.3,0.001]
[1760004581068,11.82701655,4346.4,4346.3,0.001]
[1760004587819,11.82621655,4346.4,4346.3,0.001]
[1760004589400,9.39716191,4346.4,4346.3,0.001]
[1760004589827,9.52646191,4346.4,4346.3,0.001]
[1760004590420,3.03646191,4346.4,4346.3,0.001]
[1760004590718,8.55393097,4346.4,4346.3,0.001]
[1760004590902,8.5393,4346.4,4346.3,0.001]
[1760004593211,10.84005464,4346.4,4346.3,0.001]
[1760004595410,8.41,4346.4,4346.3,0.001]
[1760004595741,8.5393,4346.4,4346.3,0.001]
[1760004596200,11.69398464,4346.4,4346.3,0.001]
[1760004597112,9.39323,4346.4,4346.3,0.001]
[1760004598101,8.5393,4346.4,4346.3,0.001]
[1760004599120,10.84005464,4346.4,4346.3,0.001]
[1760004599319,8.5393,4346.4,4346.3,0.001]
[1760004600637,10.84005464,4346.4,4346.3,0.001]
[1760004602406,11.33682138,4346.4,4346.3,0.001]
[1760004602734,12.66811367,4346.4,4346.3,0.001]
[1760004603510,12.17134693,4346.4,4346.3,0.001]
[1760004603815,16.06089539,4346.4,4346.3,0.001]
[1760004604011,16.05765972,4346.4,4346.3,0.001]
[1760004604920,12.16811126,4346.4,4346.3,0.001]
[1760004605139,16.05765972,4346.4,4346.3,0.001]
[1760004605735,12.16811126,4346.4,4346.3,0.001]
[1760004607243,12.17011126,4346.4,4346.3,0.001]
[1760004608056,9.86935662,4346.4,4346.3,0.001]
[1760004608349,8.0413,4346.4,4346.3,0.001]
[1760004608751,1.422,4346.4,4346.3,0.001]
[1760004608953,6.492,4346.4,4346.3,0.001]
[1760004609650,6.6213,4346.4,4346.3,0.001]
[1760004610526,8.92205464,4346.4,4346.3,0.001]
[1760004610733,6.6205,4346.4,4346.3,0.001]
[1760004611051,8.92125464,4346.4,4346.3,0.001]
[1760004611256,6.6205,4346.4,4346.3,0.001]
[1760004611447,8.92125464,4346.4,4346.3,0.001]
[1760004611953,6.6205,4346.4,4346.3,0.001]
[1760004612556,8.92125464,4346.4,4346.3,0.001]
[1760004613857,12.46007706,4346.4,4346.3,0.001]
[1760004614853,9.66269253,4346.4,4346.3,0.001]
[1760004615053,13.23425464,4346.4,4346.3,0.001]
[1760004615239,10.9335,4346.4,4346.3,0.001]
[1760004615657,13.23425464,4346.4,4346.3,0.001]
[1760004623466,13.73087216,4346.4,4346.3,0.001]
[1760004625062,14.55331429,4346.4,4346.3,0.001]
[1760004625284,13.73087216,4346.4,4346.3,0.001]
[1760004626977,16.15487216,4346.4,4346.3,0.001]
[1760004627384,16.24702903,4346.4,4346.3,0.001]
[1760004629999,6.75920758,4346.3,4345.8,0.001]
[1760004630197,8.33086781,4345.9,4345.8,0.001]
[1760004630496,25.31210671,4345.9,4345.8,0.001]
[1760004630695,25.44240671,4345.9,4345.8,0.001]
[1760004630900,25.53457759,4345.9,4345.8,0.001]
[1760004632098,7.88185825,4345.9,4345.8,0.001]
[1760004632302,14.37185825,4345.9,4345.8,0.001]
[1760004632499,13.87524073,4345.9,4345.8,0.001]
[1760004632803,9.65522138,4345.9,4345.8,0.001]
[1760004632994,2.394,4346.3,4345.8,0.001]
[1760004633187,8.93760873,4346.2,4345.8,0.001]
[1760004633501,1.92,4346.1,4345.8,0.001]
[1760004633799,6.50483097,4346.0,4345.8,0.001]
[1760004634001,6.6221,4346.0,4345.8,0.001]
[1760004634299,0.1311,4345.9,4345.8,0.001]
[1760004634982,0.14493097,4345.9,4345.8,0.001]
[1760004635497,0.36343097,4345.9,4345.8,0.001]
[1760004635693,2.66445032,4345.9,4345.8,0.001]
[1760004638699,4.58445032,4345.9,4345.8,0.001]
[1760004639010,4.57061935,4345.9,4345.8,0.001]
[1760004641776,5.06600526,4345.9,4345.8,0.001]
[1760004642110,17.06600526,4345.9,4345.8,0.001]
[1760004643523,17.15817105,4345.9,4345.8,0.001]
[1760004643984,21.34971839,4345.9,4345.8,0.001]
[1760004644184,23.77371839,4345.9,4345.8,0.001]
[1760004645711,14.19771839,4345.9,4345.8,0.001]
[1760004645914,32.65871839,4345.9,4345.8,0.001]
[1760004647392,2.30133707,4345.3,4345.2,1e-08]
[1760004647595,15.08051846,4345.3,4345.2,1e-08]
[1760004647921,15.6940734,4345.3,4345.2,1e-08]
[1760004648140,15.78625554,4345.3,4345.2,1e-08]
[1760004648342,15.89966095,4345.3,4345.2,1e-08]
[1760004648509,15.4720347,4345.3,4345.2,1e-08]
[1760004650532,14.8530842,4345.3,4345.2,1e-08]
[1760004650734,15.30470481,4345.3,4345.2,1e-08]
[1760004652310,14.8530842,4345.3,4345.2,1e-08]
[1760004652643,2.30149597,4345.0,4344.9,1e-08]
[1760004652816,17.0478132,4345.0,4344.9,1e-08]
[1760004653023,17.04265555,4345.0,4344.9,1e-08]
[1760004653234,20.35042922,4345.0,4344.9,1e-08]
[1760004653433,20.44261625,4345.0,4344.9,1e-08]
[1760004654023,22.86661625,4345.0,4344.9,1e-08]